bitfinex-derivatives/quotes_BTCF0:USTF0_20230106
["timestamp","ask_amount","ask_price","bid_price","bid_amount"]
[1672968589929,0.136,16865.0,16862.0,0.3007]
[1672968598133,0.136,16865.0,16863.0,0.3007]
[1672968601487,0.136,16865.0,16861.0,0.39956434]
[1672968601704,0.136,16865.0,16863.0,0.3007]
[1672968602547,0.136,16865.0,16863.0,0.6014]
[1672968607064,0.136,16865.0,16863.0,0.3007]
[1672968607379,0.136,16865.0,16864.0,0.3007]
[1672968608112,0.6007,16868.0,16864.0,0.3007]
[1672968608320,0.136,16865.0,16864.0,0.3017]
[1672968609064,0.7007,16868.0,16864.0,0.3007]
[1672968609277,0.7007,16868.0,16865.0,0.3]
[1672968610839,0.7007,16868.0,16865.0,0.301]
[1672968611053,0.8367,16868.0,16865.0,0.301]
[1672968617565,0.536,16868.0,16865.0,0.301]
[1672968617774,0.8367,16868.0,16865.0,0.301]
[1672968617995,0.536,16868.0,16865.0,0.301]
[1672968618203,0.8367,16868.0,16865.0,0.301]
[1672968618628,0.8367,16868.0,16865.0,0.3008402]
[1672968634499,0.536,16868.0,16865.0,0.3008402]
[1672968634698,0.3007,16867.0,16865.0,0.3008402]
[1672968636082,0.3007,16867.0,16865.0,0.2998402]
[1672968636286,0.4367,16867.0,16865.0,0.3008402]
[1672968644508,0.4367,16867.0,16865.0,0.001]
[1672968656663,0.43646583,16867.0,16865.0,0.001]
[1672968663194,0.3007,16866.0,16865.0,0.001]
[1672968664666,0.3007,16866.0,16863.0,0.3]
[1672968664873,0.4367,16866.0,16865.0,0.001]
[1672968708068,0.136,16866.0,16865.0,0.001]
[1672968708281,0.4367,16866.0,16865.0,0.001]
[1672968711322,0.4367,16866.0,16865.0,0.00087581]
[1672968717952,0.136,16866.0,16865.0,0.00087581]
[1672968718161,0.07153096,16869.0,16865.0,0.30157581]
[1672968718376,0.3007,16869.0,16865.0,0.30157581]
[1672968718587,0.4,16868.0,16865.0,0.30157581]
[1672968720059,0.4,16868.0,16865.0,0.012]
[1672968720267,0.4,16868.0,16865.0,0.3127]
[1672968720482,0.4,16868.0,16865.0,0.3007]
[1672968720790,0.447,16868.0,16865.0,0.3127]
[1672968725848,0.447,16868.0,16865.0,0.012]
[1672968726159,0.447,16868.0,16865.0,0.3127]
[1672968727630,1.38149301,16868.0,16865.0,0.3127]
[1672968734253,1.38149301,16868.0,16866.0,0.3007]
[1672968735513,1.38149301,16868.0,16866.0,0.3127]
[1672968736983,0.447,16868.0,16866.0,0.3127]
[1672968741193,0.447,16868.0,16866.0,0.012]
[1672968743600,1.38149301,16868.0,16866.0,0.012]
[1672968746127,0.447,16868.0,16866.0,0.012]
[1672968747284,0.447,16868.0,16866.0,0.3127]
[1672968748441,1.38149301,16868.0,16866.0,0.3127]
[1672968749278,1.38149301,16868.0,16866.0,0.012]
[1672968750121,1.38149301,16868.0,16866.0,0.3127]
[1672968750749,0.447,16868.0,16866.0,0.3127]
[1672968757789,1.38149301,16868.0,16866.0,0.3127]
[1672968761462,1.38149301,16868.0,16866.0,0.012]
[1672968761679,1.38149301,16868.0,16866.0,0.3127]
[1672968764400,0.447,16868.0,16866.0,0.3127]
[1672968767878,0.447,16868.0,16866.0,0.012]
[1672968768086,0.447,16868.0,16866.0,0.3127]
[1672968771349,0.447,16868.0,16866.0,0.31249635]
[1672968783856,0.447,16868.0,16866.0,0.01179635]
[1672968784066,0.447,16868.0,16866.0,0.31249635]
[1672968792169,0.447,16868.0,16866.0,0.01179635]
[1672968792378,0.447,16868.0,16866.0,0.31249635]
[1672968813202,0.447,16868.0,16866.0,0.01179635]
[1672968820029,0.7477,16868.0,16866.0,0.01179635]
[1672968823081,0.447,16868.0,16866.0,0.01179635]
[1672968823292,0.7477,16868.0,16866.0,0.01179635]
[1672968824875,0.7477,16868.0,16866.0,0.01165327]
[1672968837271,0.447,16868.0,16866.0,0.01165327]
[1672968837582,0.7477,16868.0,16866.0,0.01165327]
[1672968838846,0.447,16868.0,16866.0,0.01165327]
[1672968839058,0.7477,16868.0,16866.0,0.01165327]
[1672968851876,0.447,16868.0,16866.0,0.01165327]
[1672968852091,0.7477,16868.0,16866.0,0.01165327]
[1672968855442,0.447,16868.0,16866.0,0.01165327]
[1672968855656,0.7477,16868.0,16866.0,0.01165327]
[1672968858708,1.3407,16868.0,16866.0,0.01165327]
[1672968873321,1.04,16868.0,16866.0,0.01165327]
[1672968873527,1.3407,16868.0,16866.0,0.01165327]
[1672968874060,1.3407,16868.0,16866.0,0.01146471]
[1672968874894,1.04,16868.0,16866.0,0.01146471]
[1672968875104,1.3407,16868.0,16866.0,0.01146471]
[1672968878574,0.3,16867.0,16864.0,0.3007]
[1672968879188,1.23449301,16867.0,16864.0,0.3007]
[1672968879404,1.53519301,16867.0,16864.0,0.3007]
[1672968879935,1.58919301,16867.0,16864.0,0.3117]
[1672968880250,1.28849301,16867.0,16864.0,0.011]
[1672968880460,1.58919301,16867.0,16864.0,0.3117]
[1672968883075,1.28849301,16867.0,16864.0,0.011]
[1672968883290,1.58919301,16867.0,16864.0,0.011]
[1672968886031,0.6547,16867.0,16864.0,0.011]
[1672968892019,0.354,16867.0,16864.0,0.011]
[1672968892232,0.6547,16867.0,16864.0,0.011]
[1672968892542,0.354,16867.0,16864.0,0.011]
[1672968892757,0.6547,16867.0,16864.0,0.011]
[1672968894756,1.58919301,16867.0,16864.0,0.011]
[1672968898850,1.58919301,16867.0,16864.0,0.3117]
[1672968901576,0.6547,16867.0,16864.0,0.3117]
[1672968907678,0.354,16867.0,16864.0,0.011]
[1672968907991,0.354,16867.0,16864.0,0.3117]
[1672968908829,0.354,16867.0,16864.0,0.011]
[1672968909140,0.354,16867.0,16864.0,0.3117]
[1672968911778,0.354,16867.0,16864.0,0.011]
[1672968913873,0.354,16867.0,16864.0,0.3117]
[1672968914084,0.6547,16867.0,16864.0,0.3117]
[1672968917025,1.58919301,16867.0,16864.0,0.3117]
[1672968921339,1.28849301,16867.0,16864.0,0.3117]
[1672968923755,0.354,16867.0,16864.0,0.3117]
[1672968924601,0.354,16867.0,16864.0,0.011]
[1672968929214,0.354,16867.0,16864.0,0.01092063]
[1672968930901,1.28849301,16867.0,16864.0,0.01092063]
[1672968936036,1.28849301,16867.0,16864.0,0.31162063]
[1672968939621,0.354,16867.0,16864.0,0.31162063]
[1672968940144,0.354,16867.0,16865.0,0.3007]
[1672968941092,0.3,16867.0,16865.0,0.3007]
[1672968941304,0.364,16867.0,16865.0,0.3107]
[1672968942146,0.3,16867.0,16865.0,0.3007]
[1672968942458,0.364,16867.0,16865.0,0.3107]
[1672968946552,1.29849301,16867.0,16865.0,0.3107]
[1672968948341,1.29849301,16867.0,16865.0,0.01]
[1672968955288,0.364,16867.0,16865.0,0.01]
[1672968962222,1.29849301,16867.0,16865.0,0.01]
[1672968969057,0.364,16867.0,16865.0,0.01]
[1672968971903,0.6647,16867.0,16865.0,0.01]
[1672968975891,0.93449301,16866.0,16865.0,0.01]
[1672968977368,0.93449301,16866.0,16865.0,0.00979484]
[1672968977784,0.93449301,16866.0,16864.0,0.3007]
[1672968977997,0.99849301,16866.0,16865.0,0.01]
[1672968978723,0.93449301,16866.0,16864.0,0.3007]
[1672968978938,0.99849301,16866.0,16865.0,0.01]
[1672968980624,0.99949301,16866.0,16865.0,0.01]
[1672968981042,0.93449301,16866.0,16865.0,0.01]
[1672968981258,0.99949301,16866.0,16865.0,0.01]
[1672968984514,0.065,16866.0,16865.0,0.01]
[1672968991358,0.99949301,16866.0,16865.0,0.01]
[1672968993566,0.065,16866.0,16865.0,0.01]
[1672969013534,0.99949301,16866.0,16865.0,0.01]
[1672969015753,0.065,16866.0,16865.0,0.01]
[1672969020269,0.99949301,16866.0,16865.0,0.01]
[1672969022590,0.065,16866.0,16865.0,0.01]
[1672969025319,0.065,16866.0,16865.0,0.00979134]
[1672969029099,0.99949301,16866.0,16865.0,0.00979134]
[1672969035844,0.065,16866.0,16865.0,0.00979134]
[1672969051602,0.99949301,16866.0,16865.0,0.00979134]
[1672969058249,0.065,16866.0,16865.0,0.00979134]
[1672969060246,0.065,16866.0,16865.0,0.31049134]
[1672969068756,0.065,16866.0,16865.0,0.00979134]
[1672969068972,0.065,16866.0,16865.0,0.31049134]
[1672969071170,0.065,16866.0,16865.0,0.31025235]
[1672969073490,0.065,16866.0,16865.0,0.61095235]
[1672969078856,0.065,16866.0,16865.0,0.00955235]
[1672969079177,0.065,16866.0,16865.0,0.31025235]
[1672969089675,0.065,16866.0,16865.0,0.00955235]
[1672969089890,0.065,16866.0,16865.0,0.31025235]
[1672969097134,0.065,16866.0,16865.0,0.00955235]
[1672969097345,0.065,16866.0,16865.0,0.31025235]
[1672969099019,0.065,16866.0,16865.0,0.00955235]
[1672969099229,0.065,16866.0,16865.0,0.31025235]
[1672969103115,0.065,16866.0,16865.0,0.00955235]
[1672969115423,0.065,16866.0,16865.0,0.00942657]
[1672969125824,0.065,16866.0,16865.0,0.31012657]
[1672969149067,0.065,16866.0,16865.0,0.00942657]
[1672969166206,0.065,16866.0,16865.0,0.00929232]
[1672969183863,0.065,16866.0,16865.0,0.30999232]
[1672969189856,0.065,16866.0,16865.0,0.00929232]
[1672969190171,0.065,16866.0,16865.0,0.30999232]
[1672969193321,0.065,16866.0,16865.0,0.00929232]
[1672969217072,0.99949301,16866.0,16865.0,0.00929232]
[1672969218652,1.30019301,16866.0,16865.0,0.00929232]
[1672969218855,1.30019301,16866.0,16865.0,0.00914224]
[1672969223697,0.3657,16866.0,16865.0,0.00914224]
[1672969230015,0.065,16866.0,16865.0,0.00914224]
[1672969230223,0.3657,16866.0,16865.0,0.00914224]
[1672969233795,0.065,16866.0,16865.0,0.00914224]
[1672969244010,0.3657,16866.0,16865.0,0.00914224]
[1672969246221,1.30019301,16866.0,16865.0,0.00914224]
[1672969250627,0.3657,16866.0,16865.0,0.00914224]
[1672969255888,0.065,16866.0,16865.0,0.00914224]
[1672969266829,0.065,16866.0,16865.0,0.00903773]
[1672969283962,0.99949301,16866.0,16865.0,0.00903773]
[1672969286688,1.30019301,16866.0,16865.0,0.00903773]
[1672969292998,0.3657,16866.0,16865.0,0.00903773]
[1672969293734,0.065,16866.0,16865.0,0.00903773]
[1672969306553,0.99949301,16866.0,16865.0,0.00903773]
[1672969314858,0.99935761,16866.0,16865.0,0.00903773]
[1672969315269,0.0648646,16866.0,16865.0,0.00903773]
[1672969322109,0.99935761,16866.0,16865.0,0.00903773]
[1672969328945,0.0648646,16866.0,16865.0,0.00903773]
[1672969337576,0.0648646,16866.0,16865.0,0.30973773]
[1672969341776,0.06,16866.0,16865.0,0.3117]
[1672969342935,0.061,16866.0,16865.0,0.3117]
[1672969351240,0.061,16866.0,16865.0,0.6124]
[1672969369313,0.061,16866.0,16865.0,0.61225036]
[1672969386540,0.061,16866.0,16865.0,0.01085036]
[1672969386755,0.061,16866.0,16865.0,0.61225036]
[1672969387280,0.061,16866.0,16865.0,0.01085036]
[1672969387700,0.061,16866.0,16865.0,0.61225036]
[1672969388113,0.061,16866.0,16865.0,0.01085036]
[1672969388323,0.061,16866.0,16865.0,0.61225036]
[1672969394002,0.061,16866.0,16865.0,0.01085036]
[1672969394319,0.061,16866.0,16865.0,0.61225036]
[1672969397374,0.3,16869.0,16865.0,0.6014]
[1672969397580,0.3,16869.0,16868.0,0.3007]
[1672969398944,0.356,16869.0,16868.0,0.3117]
[1672969400518,0.3,16869.0,16868.0,0.3007]
[1672969400731,0.356,16869.0,16868.0,0.3117]
[1672969400941,0.356,16869.0,16868.0,0.3007]
[1672969400942,0.3,16869.0,16868.0,0.3007]
[1672969401248,0.356,16869.0,16868.0,0.3117]
[1672969401468,0.3,16869.0,16868.0,0.3007]
[1672969401676,0.356,16869.0,16868.0,0.3117]
[1672969404726,1.29049301,16869.0,16868.0,0.3117]
[1672969405046,1.29049301,16869.0,16868.0,0.011]
[1672969405247,1.29049301,16869.0,16868.0,0.3117]
[1672969406929,0.356,16869.0,16868.0,0.3117]
[1672969413782,0.356,16869.0,16868.0,0.011]
[1672969415446,0.356,16869.0,16868.0,0.01089593]
[1672969417550,0.356,16869.0,16868.0,0.31159593]
[1672969420495,1.29049301,16869.0,16868.0,0.31159593]
[1672969422596,0.356,16869.0,16868.0,0.31159593]
[1672969425121,1.29049301,16869.0,16868.0,0.31159593]
[1672969427252,0.356,16869.0,16868.0,0.31159593]
[1672969427567,0.356,16869.0,16868.0,0.01089593]
[1672969428297,0.356,16869.0,16868.0,0.31159593]
[1672969433972,1.29049301,16869.0,16868.0,0.31159593]
[1672969436077,1.29049301,16869.0,16868.0,0.01089593]
[1672969442798,0.356,16869.0,16868.0,0.01089593]
[1672969449428,1.29049301,16869.0,16868.0,0.01089593]
[1672969451741,0.356,16869.0,16868.0,0.01089593]
[1672969454053,1.29049301,16869.0,16868.0,0.01089593]
[1672969456140,0.356,16869.0,16868.0,0.01089593]
[1672969460256,0.6567,16869.0,16868.0,0.01089593]
[1672969460989,0.6567,16869.0,16868.0,0.01080095]
[1672969465297,1.59119301,16869.0,16868.0,0.01080095]
[1672969467181,0.6567,16869.0,16868.0,0.01080095]
[1672969467391,1.59011989,16869.0,16868.0,0.01080095]
[1672969470145,1.28941989,16869.0,16868.0,0.01080095]
[1672969472042,0.356,16869.0,16868.0,0.01080095]
[1672969481183,0.6567,16869.0,16868.0,0.01080095]
[1672969483605,0.356,16869.0,16868.0,0.01080095]
[1672969484018,0.6567,16869.0,16868.0,0.01080095]
[1672969485915,0.356,16869.0,16868.0,0.01080095]
[1672969487604,1.28941989,16869.0,16868.0,0.01080095]
[1672969494428,0.356,16869.0,16868.0,0.01080095]
[1672969509351,0.356,16869.0,16868.0,0.01073805]
[1672969511339,0.356,16869.0,16868.0,0.31143805]
[1672969513026,0.356,16869.0,16868.0,0.01073805]
[1672969532155,0.6567,16869.0,16868.0,0.01073805]
[1672969540147,1.59043123,16869.0,16868.0,0.01073805]
[1672969544558,1.28973123,16869.0,16868.0,0.01073805]
[1672969544763,1.59043123,16869.0,16868.0,0.01073805]
[1672969546876,0.6567,16869.0,16868.0,0.01073805]
[1672969547499,0.356,16869.0,16868.0,0.01073805]
[1672969551503,0.35580171,16869.0,16868.0,0.01073805]
[1672969556237,1.28931611,16869.0,16868.0,0.01073805]
[1672969558338,0.35580171,16869.0,16868.0,0.01073805]
[1672969570327,1.28957751,16869.0,16868.0,0.01073805]
[1672969572533,0.35580171,16869.0,16868.0,0.01073805]
[1672969578418,0.29980171,16869.0,16866.0,0.7007]
[1672969578618,0.36280171,16869.0,16868.0,0.011]
[1672969585145,1.29679981,16869.0,16868.0,0.011]
[1672969591968,0.36280171,16869.0,16868.0,0.011]
[1672969598694,0.66350171,16869.0,16868.0,0.011]
[1672969603005,0.66350171,16869.0,16868.0,0.01083111]
[1672969604796,0.36280171,16869.0,16868.0,0.01083111]
[1672969605118,0.66350171,16869.0,16868.0,0.01083111]
[1672969607631,1.59749981,16869.0,16868.0,0.01083111]
[1672969610052,0.66350171,16869.0,16868.0,0.01083111]
[1672969625089,1.59763429,16869.0,16868.0,0.01083111]
[1672969627205,0.66350171,16869.0,16868.0,0.01083111]
[1672969630768,0.36280171,16869.0,16868.0,0.01083111]
[1672969630983,0.66350171,16869.0,16868.0,0.01083111]
[1672969635604,0.36280171,16869.0,16868.0,0.01083111]
[1672969635811,0.66350171,16869.0,16868.0,0.01083111]
[1672969636873,0.36280171,16869.0,16868.0,0.01083111]
[1672969645602,0.66350171,16869.0,16868.0,0.01083111]
[1672969647378,0.66350171,16869.0,16868.0,0.01074401]
[1672969650640,0.36280171,16869.0,16868.0,0.01074401]
[1672969650962,0.66350171,16869.0,16868.0,0.01074401]
[1672969672085,0.36280171,16869.0,16868.0,0.01074401]
[1672969672303,0.66350171,16869.0,16868.0,0.01074401]
[1672969678928,0.36280171,16869.0,16868.0,0.01074401]
[1672969679240,0.66350171,16869.0,16868.0,0.01074401]
[1672969679661,0.36280171,16869.0,16868.0,0.01074401]
[1672969679868,0.66350171,16869.0,16868.0,0.01074401]
[1672969681552,0.36280171,16869.0,16868.0,0.01074401]
[1672969681770,0.66350171,16869.0,16868.0,0.01074401]
[1672969682704,0.36280171,16869.0,16868.0,0.01074401]
[1672969682915,0.66350171,16869.0,16868.0,0.01074401]
[1672969689333,0.36280171,16869.0,16868.0,0.01074401]
[1672969697849,0.36280171,16869.0,16868.0,0.01056873]
[1672969701106,1.29666335,16869.0,16868.0,0.01056873]
[1672969704156,1.29666335,16869.0,16868.0,0.00951186]
[1672969704992,1.59736335,16869.0,16868.0,0.00951186]
[1672969705733,0.66350171,16869.0,16868.0,0.00951186]
[1672969706152,0.66350171,16869.0,16868.0,0.00856068]
[1672969708269,0.66350171,16869.0,16868.0,0.00770462]
[1672969710265,0.66350171,16869.0,16868.0,0.00693416]
[1672969711725,0.66350171,16869.0,16863.0,1.7022]
[1672969711941,0.3007,16866.0,16863.0,0.9218]
[1672969712152,0.3007,16866.0,16861.0,0.9202]
[1672969712468,0.3007,16866.0,16862.0,0.4]
[1672969712777,0.4,16865.0,16862.0,0.4]
[1672969713191,0.3007,16864.0,16863.0,0.009]
[1672969713728,0.3007,16864.0,16862.0,0.407]
[1672969714460,0.3797,16864.0,16863.0,0.009]
[1672969716870,0.3737,16864.0,16862.0,0.31]
[1672969717088,0.3,16863.0,16862.0,0.31]
[1672969717707,0.3,16863.0,16862.0,0.3]
[1672969718240,0.373,16863.0,16862.0,0.31]
[1672969719517,0.373,16863.0,16862.0,0.01]
[1672969728759,0.373,16863.0,16859.0,0.3]
[1672969728970,0.3007,16862.0,16859.0,0.3]
[1672969730231,0.3007,16862.0,16859.0,0.309]
[1672969730660,0.3827,16862.0,16859.0,0.309]
[1672969732226,0.3827,16862.0,16859.0,0.6097]
[1672969738857,0.082,16862.0,16859.0,0.309]
[1672969739071,0.3827,16862.0,16859.0,0.6097]
[1672969740848,0.082,16862.0,16859.0,0.309]
[1672969741057,0.3827,16862.0,16859.0,0.6097]
[1672969757052,0.082,16862.0,16859.0,0.309]
[1672969757262,0.3827,16862.0,16859.0,0.309]
[1672969775329,0.3827,16862.0,16859.0,0.30887597]
[1672969778075,0.082,16862.0,16859.0,0.60957597]
[1672969786925,0.082,16862.0,16861.0,0.3007]
[1672969788076,0.082,16862.0,16861.0,0.3097]
[1672969788917,0.082,16862.0,16861.0,0.009]
[1672969822662,0.082,16862.0,16861.0,0.00879994]
[1672969866179,1.01546963,16862.0,16861.0,0.00879994]
[1672969866593,1.01528188,16862.0,16861.0,0.00879994]
[1672969868484,0.08181225,16862.0,16861.0,0.00879994]
[1672969873596,0.08181225,16862.0,16859.0,0.29987597]
[1672969874398,0.08181225,16862.0,16859.0,0.60057597]
[1672969874821,0.6007,16863.0,16859.0,0.60857597]
[1672969875032,0.09,16862.0,16859.0,0.60857597]
[1672969875763,0.6007,16863.0,16859.0,0.60057597]
[1672969876088,0.6907,16863.0,16859.0,0.60857597]
[1672969876285,0.09,16862.0,16859.0,0.60857597]
[1672969877550,0.4,16861.0,16859.0,0.60857597]
[1672969877958,0.4,16861.0,16859.0,0.30787597]
[1672969879130,0.472,16861.0,16859.0,0.30587597]
[1672969889945,0.472,16861.0,16859.0,0.60657597]
[1672969910851,0.472,16861.0,16859.0,0.30587597]
[1672969913274,0.472,16861.0,16859.0,0.006]
[1672969913586,0.7727,16861.0,16859.0,0.006]
[1672969921255,1.0734,16861.0,16856.0,0.4]
[1672969921466,0.3007,16859.0,16856.0,0.4]
[1672969922303,0.3007,16859.0,16856.0,0.488]
[1672969923660,0.3097,16859.0,16856.0,0.488]
[1672969926404,0.3,16858.0,16856.0,0.488]
[1672969927450,0.3,16858.0,16856.0,0.4]
[1672969927664,0.309,16858.0,16856.0,0.488]
[1672969955727,0.6097,16858.0,16856.0,0.488]
[1672969958350,0.309,16858.0,16856.0,0.488]
[1672969958569,0.6097,16858.0,16856.0,0.488]
[1672969962562,0.6097,16858.0,16856.0,0.088]
[1672969968766,0.309,16858.0,16856.0,0.088]
[1672969969085,0.6097,16858.0,16856.0,0.088]
[1672969973700,0.309,16858.0,16856.0,0.08787384]
[1672969973915,0.6097,16858.0,16856.0,0.08787384]
[1672969974538,0.309,16858.0,16856.0,0.08787384]
[1672969974748,0.6097,16858.0,16856.0,0.08787384]
[1672969981596,0.309,16858.0,16856.0,0.08787384]
[1672969981811,0.6097,16858.0,16856.0,0.08787384]
[1672969989801,1.54316963,16858.0,16856.0,0.08787384]
[1672969994210,0.6097,16858.0,16856.0,0.08787384]
[1672970004631,0.309,16858.0,16856.0,0.08787384]
[1672970004850,0.3007,16857.0,16856.0,0.08787384]
[1672970006108,0.3097,16857.0,16856.0,0.088]
[1672970008626,0.009,16857.0,16856.0,0.088]
[1672970008843,0.3097,16857.0,16856.0,0.088]
[1672970010414,0.009,16857.0,16856.0,0.088]
[1672970010622,0.3097,16857.0,16856.0,0.088]
[1672970019144,0.3007,16857.0,16854.0,0.7171]
[1672970019355,0.3107,16857.0,16856.0,0.08]
[1672970019559,0.3007,16857.0,16854.0,0.4]
[1672970019769,0.3107,16857.0,16856.0,0.08]
[1672970024187,0.3107,16857.0,16856.0,0.07978184]
[1672970024405,0.3107,16857.0,16853.0,0.3007]
[1672970024609,0.3107,16857.0,16854.0,0.4]
[1672970025683,0.3097,16857.0,16854.0,0.4]
[1672970026612,0.30959736,16857.0,16854.0,0.4]
[1672970026821,0.3007,16857.0,16854.0,0.4]
[1672970027025,0.3147,16857.0,16854.0,0.407]
[1672970027768,1.24816963,16857.0,16854.0,0.407]
[1672970028499,0.3007,16856.0,16854.0,0.407]
[1672970030700,0.3147,16856.0,16854.0,0.4]
[1672970033763,0.014,16856.0,16854.0,0.4]
[1672970034277,0.3147,16856.0,16854.0,0.4]
[1672970036598,0.3147,16856.0,16853.0,0.3007]
[1672970037234,0.3147,16856.0,16852.0,0.40006]
[1672970038076,0.3147,16856.0,16853.0,0.007]
[1672970038706,0.6154,16856.0,16853.0,0.007]
[1672970038916,0.3007,16854.0,16852.0,6e-05]
[1672970039856,0.3007,16854.0,16852.0,0.00106]
[1672970040178,0.3007,16854.0,16852.0,6e-05]
[1672970040381,0.3147,16854.0,16852.0,0.00106]
[1672970040594,0.3147,16854.0,16852.0,0.40106]
[1672970041225,0.3147,16854.0,16852.0,0.00106]
[1672970041432,0.3,16853.0,16852.0,0.40106]
[1672970042910,0.314,16853.0,16852.0,0.40106]
[1672970048164,0.314,16853.0,16852.0,0.00106]
[1672970049321,0.3,16853.0,16852.0,6e-05]
[1672970049532,0.314,16853.0,16852.0,0.00106]
[1672970050372,0.315,16853.0,16852.0,0.00106]
[1672970065200,0.316,16853.0,16852.0,0.00106]
[1672970069209,0.6167,16853.0,16852.0,0.00106]
[1672970071838,0.6167,16853.0,16849.0,0.3007]
[1672970072256,0.6147,16853.0,16849.0,0.3007]
[1672970072668,0.6007,16853.0,16849.0,0.3007]
[1672970072873,0.6147,16853.0,16849.0,0.3007]
[1672970073093,0.6147,16853.0,16852.0,6e-05]
[1672970073303,0.6147,16853.0,16849.0,0.3007]
[1672970079411,0.3007,16852.0,16849.0,0.3007]
[1672970079821,0.3007,16852.0,16849.0,0.1607]
[1672970080454,0.3147,16852.0,16849.0,0.1607]
[1672970081926,0.4,16851.0,16849.0,0.1607]
[1672970083190,0.414,16851.0,16849.0,0.1607]
[1672970086976,0.414,16851.0,16848.0,0.4]
[1672970089174,0.3007,16850.0,16848.0,0.4]
[1672970090441,0.3147,16850.0,16848.0,0.4]
[1672970092542,0.3007,16850.0,16848.0,0.4]
[1672970092862,0.3157,16850.0,16848.0,0.4]
[1672970093074,0.3157,16850.0,16847.0,0.3007]
[1672970093286,0.3157,16850.0,16845.0,0.6106]
[1672970093496,0.3157,16850.0,16846.0,0.4]
[1672970094127,0.3147,16850.0,16846.0,0.4]
[1672970097171,0.3147,16850.0,16846.0,0.7007]
[1672970104213,0.014,16850.0,16846.0,0.7007]
[1672970104428,0.014,16850.0,16848.0,0.3007]
[1672970104645,0.014,16850.0,16849.0,0.3]
[1672970105293,0.015,16850.0,16849.0,0.3]
[1672970106018,0.016,16850.0,16849.0,0.3]
[1672970119446,0.016,16850.0,16849.0,0.6007]
[1672970131222,0.016,16850.0,16849.0,0.60059634]
[1672970132586,0.016,16850.0,16849.0,0.29989634]
[1672970132800,0.016,16850.0,16849.0,0.60059634]
[1672970142354,0.016,16850.0,16849.0,0.29989634]
[1672970148593,0.016,16850.0,16849.0,0.60059634]
[1672970150173,0.016,16850.0,16849.0,0.29989634]
[1672970150489,0.016,16850.0,16849.0,0.60059634]
[1672970159841,0.016,16850.0,16849.0,0.29989634]
[1672970160029,0.016,16850.0,16849.0,0.60059634]
[1672970176736,0.016,16850.0,16849.0,0.29989634]
[1672970177477,0.016,16850.0,16847.0,0.3007]
[1672970177901,0.016,16850.0,16848.0,0.3]
[1672970178422,0.014,16850.0,16848.0,0.3]
[1672970179360,0.014,16850.0,16847.0,0.3007]
[1672970179361,0.3007,16849.0,16847.0,0.3007]
[1672970179888,0.4,16848.0,16847.0,0.3007]
[1672970180420,0.4,16848.0,16846.0,0.4]
[1672970180942,0.414,16848.0,16846.0,0.4]
[1672970181356,0.4,16848.0,16846.0,0.4]
[1672970181567,0.414,16848.0,16846.0,0.4]
[1672970183042,0.4,16848.0,16846.0,0.4]
[1672970183360,0.415,16848.0,16846.0,0.4]
[1672970184305,0.415,16848.0,16846.0,0.39987728]
[1672970195758,0.3007,16847.0,16846.0,0.39987728]
[1672970196387,0.415,16848.0,16846.0,0.39987728]
[1672970196809,0.015,16847.0,16845.0,0.3]
[1672970197331,0.415,16848.0,16845.0,0.3]
[1672970197548,0.3,16846.0,16845.0,0.3]
[1672970197956,0.3147,16847.0,16845.0,0.3]
[1672970198384,0.3007,16847.0,16845.0,0.3]
[1672970198599,0.014,16846.0,16845.0,0.3]
[1672970199542,0.3147,16847.0,16845.0,0.3]
[1672970199857,0.3007,16847.0,16845.0,0.3]
[1672970200064,0.014,16846.0,16845.0,0.3]
[1672970200272,0.314,16846.0,16845.0,0.3]
[1672970200488,0.3,16846.0,16845.0,0.3]
[1672970200802,0.3007,16847.0,16845.0,0.3]
[1672970201005,0.014,16846.0,16845.0,0.3]
[1672970231180,0.3147,16846.0,16844.0,0.3007]
[1672970231388,0.3147,16846.0,16843.0,0.4]
[1672970235586,0.3147,16846.0,16843.0,0.39988566]
[1672970235905,0.3007,16846.0,16843.0,0.39988566]
[1672970236108,0.3147,16846.0,16843.0,0.39988566]
[1672970238848,0.3147,16846.0,16842.0,0.3007]
[1672970239169,0.593,16843.0,16835.0,1.0818]
[1672970239373,0.3007,16841.0,16835.0,0.6028]
[1672970239577,0.3007,16841.0,16838.0,0.4]
[1672970239790,0.4,16840.0,16838.0,0.4]
[1672970239999,0.3007,16841.0,16838.0,0.4]
[1672970240219,0.3007,16842.0,16838.0,0.4]
[1672970240430,0.4,16841.0,16838.0,0.4]
[1672970240741,0.414,16841.0,16838.0,0.4]
[1672970241271,0.3007,16840.0,16838.0,0.4]
[1672970242312,0.3147,16840.0,16838.0,0.4]
[1672970242733,0.3007,16840.0,16838.0,0.4]
[1672970242944,0.3077,16840.0,16838.0,0.4]
[1672970243370,0.4247,16840.0,16838.0,0.4]
[1672970244730,0.30063968,16840.0,16838.0,0.4]
[1672970244938,0.43563968,16840.0,16838.0,0.4]
[1672970245153,0.3,16839.0,16838.0,0.4]
[1672970246528,0.351,16839.0,16838.0,0.4]
[1672970247882,0.351,16839.0,16836.0,0.3]
[1672970248099,0.351,16839.0,16836.0,0.4]
[1672970248526,0.3,16839.0,16836.0,0.4]
[1672970248738,0.424,16839.0,16836.0,0.4]
[1672970249372,0.307,16839.0,16836.0,0.4]